Workbook

Sheet scenario 1-example calc03
A1: AWSC Intersection Model - 2 Single Lane Approaches
A3: Example Calculation #1
A4: Calculations | B4: NB | C4: WB
A5: Volume (veh/hr) | B5: 300 | C5: 200
A6: Lambda (veh/sec) | B6: =B5/3600 -> 0.08333333333 | C6: =C5/3600 -> 0.05555555556
A7: Departure headway (hd) | B7: =DepartureHeadway(B6,C6) -> 4.384952211 | C7: =DepartureHeadway(C6,B6) -> 4.5942841
A8: Degree of utilization (X) | B8: =B6*B7 -> 0.3654126842 | C8: =C6*C7 -> 0.2552380056
A11: Example Calculation #2
A12: Calculations | B12: NB | C12: WB
A13: Volume (veh/hr) | B13: 300 | C13: 900
A14: Lambda (veh/sec) | B14: =B13/3600 -> 0.08333333333 | C14: =C13/3600 -> 0.25
A15: Departure headway (hd) | B15: =DepartureHeadway(B14,C14) -> 6.220319892 | C15: =DepartureHeadway(C14,B14) -> 4.884883983
A16: Degree of utilization (X) | B16: =B14*B15 -> 0.518359991 | C16: =C14*C15 -> 1.221220996
A19: Example Calculation #3
A20: Calculations | B20: NB | C20: WB
A21: Volume (veh/hr) | B21: 300 | C21: 900
A22: Lambda (veh/sec) | B22: =B21/3600 -> 0.08333333333 | C22: =C21/3600 -> 0.25
A23: Departure headway (hd) | B23: =DepartureHeadway(B22,C22) -> 6.220319892 | C23: =DepartureHeadway(C22,B22) -> 4.884883983
A24: Degree of utilization (X) | B24: =B22*B23 -> 0.518359991 | C24: =C22*C23 -> 1.221220996
B26: vWB | C26: hd,NB | D26: hd,WB | E26: XNB | F26: XWB
B27: 0 | C27: 3.9 | D27: 4.5175 | E27: 0.325 | F27: 0
B28: 50 | C28: 4.019711991 | D28: 4.536454399 | E28: 0.3349759993 | F28: 0.06300631109
B29: 100 | C29: 4.140432783 | D29: 4.555568524 | E29: 0.3450360653 | F29: 0.1265435701
B30: 150 | C30: 4.262175182 | D30: 4.574844404 | E30: 0.3551812652 | F30: 0.1906185168
B31: 200 | C31: 4.384952211 | D31: 4.5942841 | E31: 0.3654126842 | F31: 0.2552380056
B32: 250 | C32: 4.508777114 | D32: 4.61388971 | E32: 0.3757314262 | F32: 0.3204090076
B33: 300 | C33: 4.633663366 | D33: 4.633663366 | E33: 0.3861386139 | F33: 0.3861386139
B34: 350 | C34: 4.759624671 | D34: 4.65360724 | E34: 0.3966353892 | F34: 0.4524340372
B35: 400 | C35: 4.886674969 | D35: 4.673723537 | E35: 0.4072229141 | F35: 0.5193026152
B36: 450 | C36: 5.014828445 | D36: 4.694014504 | E36: 0.4179023704 | F36: 0.586751813
B37: 500 | C37: 5.144099529 | D37: 4.714482425 | E37: 0.4286749607 | F37: 0.6547892258
B38: 550 | C38: 5.274502906 | D38: 4.735129627 | E38: 0.4395419088 | F38: 0.7234225819
B39: 600 | C39: 5.406053517 | D39: 4.755958473 | E39: 0.4505044597 | F39: 0.7926597456
B40: 650 | C40: 5.538766568 | D40: 4.776971373 | E40: 0.4615638807 | F40: 0.8625087202
B41: 700 | C41: 5.672657537 | D41: 4.798170777 | E41: 0.4727214614 | F41: 0.932977651
B42: 750 | C42: 5.807742174 | D42: 4.819559178 | E42: 0.4839785145 | F42: 1.004074829
B43: 800 | C43: 5.944036515 | D43: 4.841139115 | E43: 0.4953363763 | F43: 1.075808692
B44: 850 | C44: 6.081556882 | D44: 4.862913173 | E44: 0.5067964068 | F44: 1.148187833
B45: 900 | C45: 6.220319892 | D45: 4.884883983 | E45: 0.518359991 | F45: 1.221220996

Sheet problem 10
A1: AWSC Intersection Model - 2 Single Lane Approaches
A3: Problem 10
A4: Calculations | B4: NB | C4: WB
A5: Volume (veh/hr) | B5: 300 | C5: 747
A6: Lambda (veh/sec) | B6: =B5/3600 -> 0.08333333333 | C6: =C5/3600 -> 0.2075
A7: Departure headway (hd) | B7: =DepartureHeadway(B6,C6) -> 5.799603144 | C7: =DepartureHeadway(C6,B6) -> 4.818270498
A8: Degree of utilization (X) | B8: =B6*B7 -> 0.483300262 | C8: =C6*C7 -> 0.9997911283
B11: WBVol | C11: X, WB
B12: 25 | C12: 0.03143720388
B13: 50 | C13: 0.06300631109
B14: 100 | C14: 0.1265435701
B15: 200 | C15: 0.2552380056
B16: 300 | C16: 0.3861386139
B17: 400 | C17: 0.5193026152
B18: 500 | C18: 0.6547892258
B19: 550 | C19: 0.7234225819
B20: 600 | C20: 0.7926597456
B21: 625 | C21: 0.8275072508
B22: 650 | C22: 0.8625087202
B23: 675 | C23: 0.8976651764
B24: 700 | C24: 0.932977651
B25: 747 | C25: =$C$8 -> 0.9997911283
